bitfinex/quotes_ETHUSD_20251201
["timestamp","ask_amount","ask_price","bid_price","bid_amount"]
[1764549859507,3.48541354,2869.1,2868.5,0.6818]
[1764549859709,3.48541354,2869.1,2868.5,0.1941]
[1764549859880,0.34874135,2869.1,2868.5,0.1941]
[1764549860080,0.72559411,2869.4,2868.5,0.1941]
[1764549860303,0.72559411,2869.4,2868.5,0.6818]
[1764549860491,2.83472746,2870.2,2868.5,7.65406903]
[1764549860704,2.83472746,2870.2,2868.6,0.4877]
[1764549860902,0.238,2870.7,2868.5,0.1941]
[1764549860903,6.96961248,2869.6,2868.5,0.1941]
[1764549861339,6.96961248,2869.6,2868.5,0.6818]
[1764549861738,3.48407791,2870.2,2868.6,0.4877]
[1764549861934,0.1171,2869.8,2868.6,0.4877]
[1764549862128,0.1171,2869.8,2868.5,0.1941]
[1764549862332,0.1171,2869.8,2868.6,0.4877]
[1764549862533,0.72559411,2869.9,2868.6,0.4877]
[1764549863428,0.72559411,2869.9,2869.1,0.1862]
[1764549863820,0.72559411,2869.6,2868.6,0.4877]
[1764549865553,0.238,2870.7,2869.1,0.1914]
[1764549865724,3.48304309,2871.1,2870.4,0.1914]
[1764549865923,0.34830431,2871.1,2870.4,0.1914]
[1764549866244,0.72559411,2871.4,2870.4,0.1914]
[1764549866426,10.91234942,2871.5,2870.4,0.1914]
[1764549866622,7.42980086,2871.5,2870.4,0.1914]
[1764549866824,10.91234942,2871.5,2870.4,0.1914]
[1764549867018,0.72559411,2871.4,2870.4,0.1914]
[1764549867218,1.16379435,2871.3,2870.4,0.1914]
[1764549867650,6.96427326,2871.8,2870.5,0.4826]
[1764549867860,0.72559411,2871.7,2870.5,0.4826]
[1764549868019,1.29039411,2871.7,2870.5,0.4826]
[1764549868357,0.4648,2871.6,2870.4,0.1914]
[1764549868555,0.4648,2871.6,2870.1,0.1914]
[1764549868556,1.13109811,2871.5,2870.1,0.1914]
[1764549868852,0.1,2871.1,2870.1,0.1914]
[1764549869024,0.1425,2870.2,2869.1,0.674]
[1764549869230,0.1425,2870.2,2869.2,0.4826]
[1764549870057,0.72559411,2870.7,2869.2,0.4826]
[1764549870252,0.002,2869.5,2869.2,0.4826]
[1764549871021,0.002,2869.5,2869.2,0.89853725]
[1764549871261,0.002,2869.5,2869.2,0.4826]
[1764549871565,0.002,2869.5,2869.3,0.4826]
[1764549871723,0.002,2869.8,2869.3,0.4826]
[1764549871924,3.482743,2871.3,2869.6,6.96961248]
[1764549872220,10.448229,2871.3,2869.7,0.4826]
[1764549872425,1.83231263,2871.2,2869.7,0.4826]
[1764549872674,0.61895617,2871.4,2870.0,0.1914]
[1764549872857,6.96431781,2871.8,2870.1,0.4826]
[1764549873055,10.91129899,2871.8,2870.1,0.4826]
[1764549873222,0.4648,2871.7,2870.1,0.4826]
[1764549873768,0.405504,2871.0,2869.1,0.674]
[1764549874066,0.72559411,2870.6,2869.2,0.4826]
[1764549874221,0.405504,2870.3,2868.8,0.4826]
[1764549874421,0.1,2870.2,2868.9,0.1914]
[1764549874652,0.4648,2870.5,2869.0,0.4826]
[1764549874858,0.72559411,2870.6,2869.0,0.4826]
[1764549875153,1.58240069,2870.5,2869.0,0.4826]
[1764549875721,1.11760069,2870.5,2869.0,0.4826]
[1764549876034,0.72559411,2870.3,2869.0,0.4826]
[1764549876580,1.19039411,2870.3,2869.0,0.4826]
[1764549876779,1.19039411,2870.3,2868.9,0.1914]
[1764549876780,0.4648,2870.2,2868.9,0.1914]
[1764549877065,0.88693915,2870.2,2868.9,0.1914]
[1764549878169,6.9683983,2870.1,2868.9,0.1914]
[1764549878368,10.45259745,2870.1,2868.9,0.1914]
[1764549879432,10.45259745,2870.1,2868.9,0.674]
[1764549879632,0.53350896,2870.0,2868.9,0.674]
[1764549880340,0.72559411,2869.8,2869.0,0.4826]
[1764549880563,0.53350896,2870.0,2869.0,0.4826]
[1764549880859,0.72559411,2869.9,2869.0,0.4826]
[1764549881239,0.72559411,2870.0,2869.0,0.4826]
[1764549881988,0.4648,2869.9,2868.5,0.6777]
[1764549882141,3.63037611,2870.4,2868.5,4.16382925]
[1764549882142,0.6113,2870.4,2868.5,4.16382925]
[1764549882348,0.6113,2870.4,2868.5,0.001]
[1764549882349,0.188,2868.6,2868.5,0.001]
[1764549882944,0.6528,2868.6,2868.5,0.001]
[1764549883333,0.188,2868.6,2868.5,0.001]
[1764549883537,0.4648,2868.6,2868.5,0.001]
[1764549883763,0.237,2868.8,2868.5,0.001]
[1764549883972,0.7018,2868.8,2868.5,0.001]
[1764549884372,0.72559411,2868.7,2868.5,0.001]
[1764549884956,1.53781243,2868.7,2868.5,0.001]
[1764549885346,0.188,2869.6,2868.5,0.4836]
[1764549885674,0.188,2869.6,2868.5,0.001]
[1764549885675,0.72559411,2869.4,2868.5,0.001]
[1764549885875,0.1,2868.9,2868.5,0.001]
[1764549886045,0.337,2868.9,2868.5,0.001]
[1764549886250,0.4648,2868.8,2868.5,0.001]
[1764549886551,0.72559411,2868.6,2868.5,0.001]
[1764549886879,0.81621909,2868.6,2868.5,0.001]
[1764549887073,7.69715449,2868.8,2868.5,0.001]
[1764549887373,7.69715449,2868.8,2867.4,0.1789]
[1764549888078,4.21137213,2868.8,2867.4,0.1789]
[1764549888377,7.69715449,2868.8,2868.5,0.001]
[1764549888754,0.4648,2868.7,2868.5,0.001]
[1764549888958,0.81619545,2868.6,2868.5,0.001]
[1764549889478,1.28099545,2868.6,2868.5,0.001]
[1764549890646,5.49261061,2868.6,2868.5,0.001]
[1764549891471,5.72961061,2868.6,2868.5,0.001]
[1764549892095,5.82961061,2868.6,2868.5,0.001]
[1764549892463,5.72961061,2868.6,2868.5,0.001]
[1764549892680,5.26481061,2868.6,2868.5,0.001]
[1764549893552,5.73121061,2868.6,2868.5,0.001]
[1764549893761,5.26481061,2868.6,2868.5,0.001]
[1764549893986,4.5392165,2868.6,2868.5,0.001]
[1764549894289,4.44861516,2868.6,2868.5,0.001]
[1764549895057,4.30585229,2869.4,2868.5,0.001]
[1764549895276,11.88450588,2869.3,2868.5,0.001]
[1764549895489,0.1,2869.2,2868.5,0.001]
[1764549895693,0.405504,2869.1,2868.5,0.001]
[1764549895906,0.1,2868.9,2868.5,0.001]
[1764549896491,0.4664,2868.8,2868.5,0.001]
[1764549897060,0.72559411,2868.6,2868.5,0.001]
[1764549897276,1.77897343,2868.6,2868.5,0.001]
[1764549898094,2.24537343,2868.6,2868.5,0.001]
[1764549898321,1.77897343,2868.6,2868.5,0.001]
[1764549898593,0.96259411,2869.2,2868.5,0.001]
[1764549898797,0.4664,2869.1,2868.5,0.001]
[1764549899005,10.45660506,2869.0,2868.5,0.001]
[1764549899597,4.30585229,2868.6,2868.5,0.001]
[1764549899796,2.48743754,2868.6,2868.5,0.001]
[1764549899996,0.72559411,2868.6,2868.5,0.001]
[1764549900295,1.19199411,2868.6,2868.5,0.001]
[1764549900867,0.72559411,2868.6,2868.5,0.001]
[1764549901061,4.21161516,2868.6,2868.5,0.001]
[1764549901264,0.72559411,2868.6,2868.5,0.001]
[1764549901464,4.67801516,2868.6,2868.5,0.001]
[1764549901696,5.028007,2868.6,2868.5,0.001]
[1764549901890,5.494407,2868.6,2868.5,0.001]
[1764549902085,5.028007,2868.6,2868.5,0.001]
[1764549902282,4.21161516,2868.6,2868.5,0.001]
[1764549902900,4.07837817,2869.6,2868.5,0.4833]
[1764549902901,3.48504913,2869.4,2868.5,0.4833]
[1764549903064,6.66085163,2869.5,2868.5,0.001]
[1764549903270,0.4664,2869.4,2868.5,0.001]
[1764549903465,0.72559411,2869.2,2868.5,0.001]
[1764549903688,0.51314464,2869.1,2868.5,0.001]
[1764549903890,0.72559411,2869.0,2868.5,0.001]
[1764549904097,0.4664,2868.9,2868.5,0.001]
[1764549904597,0.82559411,2868.6,2868.5,0.001]
[1764549904789,1.13109811,2868.6,2868.5,0.001]
[1764549904966,1.59749811,2868.6,2868.5,0.001]
[1764549905167,5.7075542,2868.6,2868.5,0.001]
[1764549905369,5.3020502,2868.6,2868.5,0.001]
[1764549905702,4.8356502,2868.6,2868.5,0.001]
[1764549906405,5.3020502,2868.6,2868.5,0.001]
[1764549906606,4.21161516,2868.6,2868.5,0.001]
[1764549907010,3.48802105,2868.6,2868.5,0.001]
[1764549907177,0.002,2868.6,2868.5,0.001]
[1764549907505,0.72759411,2868.6,2868.5,0.001]
[1764549907708,1.19399411,2868.6,2868.5,0.001]
[1764549907909,2.38286329,2868.6,2868.5,0.001]
[1764549908208,1.91646329,2868.6,2868.5,0.001]
[1764549908422,2.38286329,2868.6,2868.5,0.001]
[1764549909310,6.37438834,2868.6,2868.5,0.001]
[1764549910077,1.13109811,2868.3,2868.2,0.001]
[1764549910318,1.13109811,2868.3,2867.9,0.001]
[1764549910319,0.1,2868.0,2867.9,0.001]
[1764549910480,9.86449711,2868.0,2867.9,0.001]
[1764549910680,16.469381,2867.9,2867.3,0.001]
[1764549910919,13.99684111,2867.4,2867.3,0.001]
[1764549911145,13.99684111,2867.4,2866.8,1e-08]
[1764549911146,11.59390282,2867.3,2866.8,1e-08]
[1764549911283,11.59390282,2867.3,2865.6,0.1861]
[1764549911284,4.071504,2866.8,2865.6,0.1861]
[1764549911605,0.405504,2866.4,2865.6,0.1861]
[1764549911803,0.405504,2866.4,2865.3,0.1861]
[1764549911804,0.237,2866.3,2865.3,0.1861]
[1764549912010,0.237,2866.3,2864.5,0.1861]
[1764549912011,0.1856,2865.3,2864.5,0.1861]
[1764549912220,0.1856,2866.0,2864.7,0.4823]
[1764549912221,0.237,2865.4,2864.7,0.4823]
[1764549912516,0.237,2865.4,2864.5,0.1861]
[1764549912717,0.237,2865.4,2864.6,2.48281653]
[1764549913018,4.30585229,2866.3,2864.6,2.48281653]
[1764549913019,0.4664,2866.5,2865.3,0.1861]
[1764549913180,0.237,2866.4,2865.3,0.1861]
[1764549913381,3.48806501,2867.0,2866.4,0.1861]
[1764549913621,7.2131319,2867.0,2866.4,0.1861]
[1764549913823,7.60687443,2867.0,2866.4,0.1861]
[1764549913990,11.09494132,2867.0,2866.2,0.1861]
[1764549914179,11.09494132,2867.0,2866.2,0.6684]
[1764549914180,7.2131319,2867.0,2866.2,0.6684]
[1764549914383,4.30585229,2867.7,2866.2,0.6684]
[1764549914384,3.4871151,2867.7,2866.2,0.6684]
[1764549914615,0.237,2867.6,2866.3,0.4823]
[1764549914780,0.337,2867.6,2866.3,0.4823]
[1764549915185,10.46207496,2867.5,2866.3,0.4823]
[1764549915511,1.42864071,2867.4,2866.3,0.4823]
[1764549915721,2.62063482,2867.4,2866.3,0.4823]
[1764549915923,6.97471664,2867.5,2866.3,3.97111833]
[1764549916412,0.237,2867.6,2866.3,3.97111833]
[1764549916413,7.21153636,2867.6,2866.4,0.4823]
[1764549916923,7.21149103,2867.6,2866.4,0.4823]
[1764549917300,7.21149103,2867.6,2866.5,3.48857491]
[1764549917657,10.69874535,2867.6,2866.6,0.39708749]
[1764549917816,10.46174535,2867.6,2866.5,0.4823]
[1764549917984,6.97449103,2867.6,2866.5,0.4823]
[1764549918185,10.46174535,2867.6,2866.5,0.4823]
[1764549918386,6.97449103,2867.6,2866.5,0.4823]
[1764549918586,10.46174535,2867.6,2866.5,0.4823]
[1764549919025,6.97449103,2867.6,2866.5,0.4823]
[1764549919235,0.1856,2866.6,2864.6,1.7504347]
[1764549919402,0.1,2864.7,2864.6,1.5580347]
[1764549919721,0.237,2864.9,2864.6,1.5580347]
[1764549919941,0.405504,2865.4,2864.6,1.5580347]
[1764549920172,0.237,2865.5,2864.6,1.5580347]
[1764549920173,0.337,2865.5,2864.6,1.5580347]
[1764549920445,0.72559411,2865.3,2864.6,1.5580347]
[1764549920602,1.25243875,2865.3,2864.6,1.5580347]
[1764549920993,0.72559411,2864.9,2864.6,1.5580347]
[1764549921296,4.21636103,2864.7,2864.6,1e-08]
[1764549922094,4.72186503,2864.7,2864.6,1e-08]
[1764549922927,4.21636103,2864.7,2864.6,1e-08]
[1764549923135,5.21747108,2864.7,2864.6,1e-08]
[1764549924320,3.49076692,2864.7,2864.6,0.46670001]
[1764549925222,4.21636103,2864.7,2864.6,1e-08]
[1764549925422,4.21636103,2864.7,2864.6,0.46670001]
[1764549925635,4.21636103,2864.7,2864.6,1e-08]
[1764549925848,3.49076692,2864.7,2864.6,0.46670001]
[1764549926362,3.49076692,2864.7,2864.6,1e-08]
[1764549926566,4.21636103,2864.7,2864.6,0.46670001]
[1764549926749,4.21836103,2864.7,2864.6,0.46670001]
[1764549926960,4.21836103,2864.7,2864.6,1e-08]
[1764549927269,4.98926021,2864.7,2864.6,1e-08]
[1764549928128,4.21836103,2864.7,2864.6,1e-08]
[1764549928565,4.21836103,2864.7,2864.6,0.46670001]
[1764549928566,0.72759411,2864.7,2864.6,0.46670001]
[1764549928743,3.49276692,2864.7,2864.6,0.46670001]
[1764549929275,0.002,2865.0,2864.6,0.46670001]
[1764549929656,0.002,2865.0,2863.1,0.6664]
[1764549929657,0.1307,2864.7,2863.1,0.6664]
[1764549929976,0.42179734,2864.6,2863.2,0.4667]
[1764549930126,0.002,2865.0,2863.2,0.4667]
[1764549930580,0.002,2865.0,2864.9,0.1997]
[1764549930742,0.002,2865.3,2864.9,0.1997]
[1764549930939,0.002,2865.3,2864.3,0.4667]
[1764549931140,0.241,2865.3,2864.0,0.1997]
[1764549931377,0.002,2865.3,2865.2,0.1997]
[1764549931680,0.002,2865.3,2864.1,0.4667]
[1764549931839,0.002,2865.3,2865.1,0.1997]
[1764549932040,0.002,2865.3,2864.1,0.4667]
[1764549933081,11.02430711,2865.0,2864.0,0.1997]
[1764549933239,0.96459411,2865.0,2864.1,0.4667]
[1764549933560,10.71042303,2865.0,2864.1,0.4667]
[1764549933762,14.20093385,2865.0,2864.1,0.4667]
[1764549933973,10.71042303,2865.0,2864.1,0.4667]
[1764549934273,0.72559411,2864.9,2864.1,0.4667]
[1764549935240,14.20093385,2865.0,2864.1,0.4667]
[1764549935241,10.47142303,2865.0,2864.1,0.4667]
[1764549935441,0.002,2865.3,2864.1,0.4667]
[1764549936882,0.002,2865.3,2864.2,0.4667]
[1764549938080,4.08727336,2864.5,2863.0,0.4667]
[1764549938266,0.72559411,2864.4,2863.2,0.4667]
[1764549938444,0.48128675,2864.3,2863.2,0.4667]
[1764549938646,0.48128675,2864.3,2862.9,0.1861]
[1764549938647,0.1,2863.9,2862.9,0.1861]
[1764549938853,0.1,2864.1,2863.0,0.4667]
[1764549939046,0.72559411,2864.2,2862.9,0.1861]
[1764549939252,0.72559411,2863.7,2862.6,0.1997]
[1764549939572,4.18727336,2863.8,2862.6,0.1997]
[1764549939573,0.72559411,2863.4,2862.6,0.1997]
[1764549939772,0.72559411,2863.4,2862.7,0.4667]
[1764549939978,0.72559411,2863.4,2862.6,0.1997]
[1764549940185,0.72559411,2863.4,2862.4,2.02014463]
[1764549940398,0.72559411,2863.4,2862.4,2.48684463]
[1764549940603,0.55538119,2863.3,2862.4,2.48684463]
[1764549940900,0.1856,2862.5,2862.4,2.02014463]
[1764549941102,0.6787,2862.5,2862.4,2.02014463]
[1764549941307,0.72559411,2862.6,2862.4,2.02014463]
[1764549941308,0.1856,2863.2,2862.4,2.02014463]
[1764549941492,10.47815304,2863.1,2862.5,0.4667]
[1764549941682,6.98543536,2863.1,2862.5,0.4667]
[1764549941997,10.47815304,2863.1,2862.5,0.4667]
[1764549942208,0.4931,2863.9,2862.5,0.4667]
[1764549942209,10.47783249,2863.2,2862.5,0.73535446]
[1764549942411,0.72559411,2863.1,2862.5,0.4667]
[1764549942580,0.72559411,2863.1,2862.6,0.4667]
[1764549942973,6.98521409,2863.2,2862.6,0.4667]
[1764549943526,0.72559411,2863.3,2863.1,0.1997]
[1764549943876,0.72559411,2863.3,2863.1,0.6664]
[1764549944384,0.72559411,2863.4,2863.2,0.4667]
[1764549945112,0.72374293,2863.4,2863.2,0.4667]
[1764549945327,6.98438332,2863.6,2863.2,0.4667]
[1764549945610,3.491545,2864.1,2863.2,0.4667]
[1764549945771,19.07106242,2864.3,2863.1,0.1997]
[1764549945980,22.56231682,2864.3,2863.1,0.1997]
[1764549946222,10.4737632,2864.3,2863.1,0.1997]
[1764549946675,13.9650176,2864.3,2863.1,0.1997]
[1764549946876,0.72559411,2864.2,2863.1,0.1997]
[1764549947678,0.1469,2864.6,2863.2,0.4667]
[1764549947679,0.72559411,2864.0,2863.2,0.4667]
[1764549947893,1.49645316,2864.0,2863.2,0.4667]
[1764549948795,1.49645316,2864.0,2863.1,0.1997]
[1764549948990,1.49645316,2864.0,2863.1,0.6664]
[1764549949390,1.49645316,2864.0,2863.1,0.1997]
[1764549949633,0.72559411,2863.8,2863.1,0.1997]
[1764549949831,0.75709564,2863.7,2863.1,0.1997]
[1764549949994,0.75709564,2863.7,2863.1,0.6664]
[1764549950193,0.72559411,2863.8,2863.1,0.6664]
[1764549951320,0.72559411,2863.8,2863.1,0.1997]
[1764549951491,0.72559411,2863.8,2863.2,0.4667]
[1764549951688,10.47595767,2863.7,2863.2,0.4667]
[1764549952422,13.96794356,2863.7,2863.1,0.1997]
[1764549953019,10.47595767,2863.7,2863.1,0.1997]
[1764549953228,6.98397178,2863.7,2863.2,0.486]
[1764549953425,10.47595767,2863.7,2863.2,0.486]
[1764549953892,10.47595767,2863.7,2863.1,0.1997]
[1764549954097,6.98397178,2863.7,2863.1,0.6857]
[1764549954331,10.47595767,2863.7,2863.1,0.6857]
[1764549954492,15.01553933,2863.7,2863.1,0.1997]
[1764549954709,15.01553933,2863.7,2862.6,0.486]
[1764549955639,15.01553933,2863.7,2862.4,2.02114463]
[1764549955842,0.72559411,2863.6,2862.5,0.486]
[1764549957748,0.72559411,2863.4,2862.5,0.486]
[1764549958036,0.72559411,2863.4,2862.6,0.03493327]
[1764549958532,10.47668934,2863.5,2862.4,2.02114463]
[1764549958533,11.201985,2863.6,2862.4,2.02114463]
[1764549958747,11.201985,2863.6,2862.5,0.723]
[1764549958979,14.69412653,2863.6,2862.5,0.723]
[1764549959137,0.4677,2863.5,2862.4,2.02114463]
[1764549959339,0.48035892,2863.4,2862.4,2.02114463]
[1764549959557,0.48035892,2863.4,2862.5,0.486]
[1764549959733,0.48035892,2863.4,2862.4,2.02114463]
[1764549959734,0.72559411,2863.2,2862.4,2.02114463]
[1764549960555,0.1,2863.1,2862.4,2.02114463]
[1764549960877,0.4677,2863.1,2862.4,2.02114463]
[1764549961036,1.04759577,2863.1,2862.4,2.02114463]
[1764549961237,0.72559411,2863.2,2862.5,0.52093449]
[1764549961481,0.72559411,2863.2,2862.4,2.02114463]
[1764549961654,0.4677,2863.1,2862.4,2.02114463]
[1764549961840,0.72559411,2862.9,2862.4,2.02114463]
[1764549962355,0.4677,2862.8,2862.4,2.02114463]
[1764549962959,0.72559411,2862.9,2862.4,1.85753463]
[1764549963552,0.72559411,2862.9,2862.5,0.486]
[1764549964073,6.98616738,2862.8,2862.5,0.486]
[1764549964573,10.47925107,2862.8,2862.4,1.85753463]
[1764549964778,1.04792511,2862.7,2862.4,1.85753463]
[1764549965077,3.49308369,2862.8,2862.4,1.85753463]
[1764549965372,11.20228345,2863.5,2862.5,0.486]
[1764549965576,14.69451323,2863.5,2862.5,0.486]
[1764549965741,0.01048995,2862.5,2862.4,1.85753463]
[1764549965942,4.22953384,2862.5,2862.4,1.85753463]
[1764549966141,5.00182013,2862.5,2862.4,1.85753463]
[1764549966588,11.98871969,2862.5,2862.1,0.001]
[1764549966787,0.72559411,2862.4,2862.1,0.001]
[1764549966986,1.19329411,2862.4,2862.1,0.001]
[1764549967192,0.72559411,2862.2,2862.1,2.076e-05]
[1764549967491,0.72790852,2862.2,2862.1,2.076e-05]
[1764549967802,0.5677,2862.2,2862.1,2.076e-05]
[1764549968087,4.68711005,2862.2,2862.1,2.076e-05]
[1764549968386,4.21941005,2862.2,2862.1,2.076e-05]
[1764549969087,3.49381594,2862.2,2862.1,2.076e-05]
[1764549969680,3.96151594,2862.2,2862.1,2.076e-05]
[1764549969989,5.43263129,2862.2,2862.1,2.076e-05]
[1764549970482,4.21941005,2862.2,2862.1,2.076e-05]
[1764549971873,4.21941005,2862.2,2862.1,2.076e-05]
[1764549973056,4.21941005,2862.2,2862.1,0.19612076]
[1764549973057,3.49381594,2862.2,2862.1,0.19612076]
[1764549973270,7.0225824,2862.2,2861.3,0.237]
[1764549973479,6.98763188,2862.2,2861.2,0.237]
[1764549973689,3.49374966,2862.3,2861.3,0.03494914]
[1764549973858,0.03495052,2862.2,2862.1,0.1653]
[1764549974274,3.49381594,2862.2,2862.1,0.1653]
[1764549974474,7.0225824,2862.2,2862.0,0.1653]
[1764549974705,6.98665548,2862.6,2862.0,0.1653]
[1764549974909,0.002,2863.7,2862.0,0.6513]
[1764549975077,0.002,2863.7,2861.6,0.237]
[1764549975078,14.47156964,2863.5,2861.6,0.237]
[1764549975273,0.72559411,2863.4,2861.7,0.03494426]
[1764549975478,3.95295052,2863.3,2861.7,0.486]
[1764549975714,1.13109811,2862.8,2861.3,0.486]
[1764549975895,0.72559411,2862.5,2861.3,0.486]
[1764549976096,0.03495052,2862.4,2861.4,0.03494792]
[1764549976296,0.03495052,2862.4,2861.3,0.486]
[1764549976705,0.03495052,2862.4,2861.4,0.03494792]
[1764549976899,0.03495052,2862.4,2861.3,0.486]
[1764549977100,0.03495052,2862.4,2861.4,0.03494792]
[1764549977288,0.03495052,2862.5,2862.3,0.1653]
[1764549977493,0.237,2863.3,2862.3,0.1653]
[1764549977494,0.03495052,2863.3,2862.3,0.1653]
[1764549977690,0.38768624,2863.3,2862.4,0.486]
[1764549977890,7.01989794,2863.3,2862.4,0.486]
[1764549978180,0.1866,2863.6,2862.4,0.486]
[1764549978181,6.98445956,2863.5,2862.4,0.486]
[1764549978388,0.1866,2863.6,2862.4,0.486]
[1764549978389,0.03495052,2863.4,2862.4,0.486]
[1764549979117,6.98424136,2863.6,2862.4,0.486]
[1764549979286,0.76054463,2863.5,2862.4,0.723]
[1764549979495,0.03495052,2863.5,2862.5,0.486]
[1764549979698,0.4677,2863.4,2862.3,0.1653]
[1764549980015,0.72559411,2863.1,2862.4,0.486]
[1764549980180,0.03495052,2863.0,2861.0,0.1653]
[1764549980380,0.50265052,2863.0,2861.6,0.486]
[1764549980717,0.03495052,2863.0,2861.6,0.486]
[1764549981413,0.03495052,2863.0,2862.0,0.001]
[1764549981803,0.4677,2862.9,2862.1,0.1653]
[1764549981987,0.72559411,2862.6,2862.1,0.1653]
[1764549982188,0.03495052,2862.5,2862.1,0.1653]
[1764549982688,0.03495052,2862.5,2862.2,0.451]
[1764549982928,0.72559411,2863.1,2862.1,0.1653]
[1764549983081,1.20432864,2863.0,2862.1,0.1653]
[1764549983284,1.20432864,2863.0,2862.1,0.6163]
[1764549983681,1.20432864,2863.0,2862.2,0.451]
[1764549983682,0.03495052,2863.0,2862.2,0.451]
[1764549983886,0.03495052,2863.0,2862.1,0.1653]
[1764549984126,6.98592336,2862.9,2862.1,0.1653]
[1764549984293,0.03495052,2862.8,2862.1,0.1653]
[1764549984790,0.76054463,2862.8,2862.1,0.1653]
[1764549984996,1.12394297,2862.7,2862.1,0.1653]
[1764549985209,0.03495052,2862.6,2862.1,0.1653]
[1764549986022,10.97074934,2862.5,2862.0,0.001]
[1764549986220,0.03495052,2862.4,2862.0,0.001]
[1764549986812,1.25094463,2862.4,2862.0,0.001]
[1764549987122,0.4913,2862.1,2862.0,0.001]
[1764549987490,0.9817,2862.1,2862.0,0.001]
[1764549988237,4.21953212,2862.1,2862.0,0.001]
[1764549988390,5.17703212,2862.1,2862.0,0.001]
[1764549989994,6.98763218,2862.2,2862.0,0.001]
[1764549990187,1.68309411,2862.1,2862.0,0.001]
[1764549990823,11.49265911,2862.1,2862.0,0.001]
[1764549991127,12.85423111,2862.1,2862.0,0.001]
[1764549991433,1.68309411,2862.1,2862.0,0.001]
[1764549991716,1.71804463,2862.1,2862.0,0.001]
[1764549991900,2.15745343,2862.1,2862.0,0.001]
[1764549992106,4.69389144,2862.1,2862.0,0.001]
[1764549992336,4.25448264,2862.1,2862.0,0.001]
[1764549993395,5.21198264,2862.1,2862.0,0.001]
[1764549994303,4.74888264,2862.1,2862.0,0.001]
[1764549994505,4.25448264,2862.1,2862.0,0.001]
[1764549994689,3.52888853,2862.1,2862.0,0.001]
[1764549995109,6.26363461,2862.1,2862.0,0.001]
[1764549995345,0.4631,2863.1,2862.0,0.9708]
[1764549995493,0.49805052,2863.0,2862.0,0.001]
[1764549995693,0.4944,2862.1,2862.0,0.001]
[1764549995998,1.136904,2862.1,2862.0,0.001]
[1764549996314,5.44898264,2862.1,2862.0,0.001]
[1764549996636,6.35326215,2862.1,2862.0,0.001]
[1764549997543,13.73001097,2862.1,2862.0,0.001]
[1764549997719,17.52243645,2862.1,2862.0,0.001]
[1764549998342,17.52243645,2862.1,2860.4,0.1653]
[1764549998343,0.505504,2861.8,2860.4,0.1653]
[1764549998548,0.72559411,2861.4,2860.2,2.03977273]
[1764549998709,0.78085389,2861.3,2860.2,2.03977273]
[1764549999039,0.405504,2861.2,2860.2,2.03977273]
[1764549999240,0.4944,2860.3,2860.2,2.03977273]
[1764549999405,5.33853893,2861.0,2860.2,2.03977273]
[1764549999406,0.237,2860.6,2860.2,2.03977273]
[1764549999607,0.4944,2860.3,2860.2,2.03977273]
[1764549999848,0.9575,2860.3,2860.2,2.03977273]
[1764550000010,0.4631,2860.3,2860.2,2.03977273]
[1764550000212,4.68483087,2860.3,2860.2,2.03977273]
[1764550000405,5.50291439,2860.3,2860.2,2.03977273]
[1764550000639,4.22173087,2860.3,2860.2,2.03977273]
[1764550000846,3.4960423,2860.4,2860.2,2.03977273]
[1764550001139,0.72559411,2861.0,2860.2,2.03977273]
[1764550001555,14.44379986,2861.1,2860.2,2.03977273]
[1764550001556,0.4631,2861.1,2860.2,2.03977273]
[1764550001847,0.76054463,2861.1,2860.2,2.03977273]
[1764550002057,0.03495052,2861.1,2860.2,2.03977273]
[1764550002347,0.03495052,2861.1,2860.3,0.51316136]
[1764550002529,0.49805052,2861.8,2860.4,0.03496014]
[1764550002728,4.64789534,2861.7,2860.2,2.51797273]
[1764550002929,0.47478953,2861.6,2860.3,0.4782]
[1764550003241,0.03495052,2861.5,2860.3,0.4782]
[1764550003804,0.49805052,2861.5,2860.3,0.4782]
[1764550004009,0.72559411,2861.2,2860.2,2.03977273]
[1764550004215,0.72559411,2860.9,2860.2,2.03977273]
[1764550004516,0.76054463,2860.9,2860.2,2.03977273]
[1764550004851,1.9088835,2860.9,2860.2,2.03977273]
[1764550005068,0.76054463,2860.9,2860.2,2.03977273]
[1764550005917,1.22364463,2860.9,2860.2,2.03977273]
[1764550006220,0.72559411,2860.7,2860.2,2.03977273]
[1764550006829,1.18869411,2860.7,2860.2,2.03977273]
[1764550007156,0.4631,2860.6,2860.2,2.03977273]
[1764550008445,0.72559411,2860.4,2860.2,2.03977273]
[1764550008749,1.54364199,2860.4,2860.2,2.03977273]
[1764550009552,0.72559411,2860.4,2860.2,2.03977273]
[1764550009919,0.76054463,2860.4,2860.2,2.03977273]
[1764550010253,0.4631,2860.3,2860.2,2.03977273]
[1764550010441,4.68483087,2860.3,2860.2,2.03977273]
[1764550011218,11.61668187,2860.3,2860.2,1e-08]
[1764550011414,11.35268087,2860.3,2860.2,1e-08]
[1764550011859,18.69398987,2860.3,2860.2,1e-08]
[1764550012021,7.99305087,2860.3,2860.2,1e-08]
[1764550012844,10.86702187,2860.3,2860.2,1e-08]
[1764550013160,11.32442187,2860.3,2860.2,1e-08]
[1764550013350,11.32442187,2860.3,2857.4,0.4939]
[1764550013351,0.1863,2859.2,2857.4,0.4939]
[1764550013663,0.1863,2860.0,2858.6,0.70669276]
[1764550013664,0.4233,2860.0,2858.6,0.70669276]
[1764550013825,0.03495052,2859.9,2858.7,0.03498093]
[1764550014027,0.03495052,2859.9,2858.7,0.52888093]
[1764550014452,3.49674802,2859.8,2858.7,0.52888093]
[1764550014726,3.49638124,2860.1,2858.8,0.1785]
[1764550015058,0.03495052,2860.3,2860.1,0.1785]
[1764550015262,0.03495052,2860.6,2860.1,0.1785]
[1764550016061,0.03495052,2860.6,2860.1,0.6724]
[1764550016260,0.03495052,2860.6,2859.8,0.1785]
[1764550016261,0.52525052,2860.6,2859.8,0.1785]
[1764550016554,10.48767696,2860.5,2859.8,0.1785]